fUST/lending_fUST_20250213
["ID","MTS","AMOUNT","RATE_DAILY","PERIOD"]
[352894880,1739393437419,-500.0,0.00011369,2]
[352894881,1739393437430,-738.41,0.00011369,2]
[352894882,1739393437533,-500.0,0.00011369,2]
[352894883,1739393437544,-500.0,0.00011369,2]
[352894884,1739393437554,-500.0,0.00011369,2]
[352894885,1739393437564,-500.0,0.00011369,2]
[352894886,1739393437574,-1169.21,0.00011369,2]
[352894887,1739393437584,-500.0,0.00011369,2]
[352894888,1739393437593,-500.0,0.00011369,2]
[352894889,1739393437603,-500.0,0.00011369,2]
[352894890,1739393437612,-500.0,0.00011369,2]
[352894891,1739393437621,-500.0,0.00011369,2]
[352894892,1739393437632,-500.0,0.00011369,2]
[352894893,1739393437642,-500.0,0.00011369,2]
[352894894,1739393437652,-524.79,0.00011369,2]
[352894895,1739393437662,-500.0,0.00011369,2]
[352894896,1739393437672,-500.0,0.00011369,2]
[352894897,1739393437682,-2937.97,0.00011369,2]
[352894898,1739393437692,-1013.13,0.00011369,2]
[352894899,1739393437702,-1137.31,0.00011369,2]
[352894900,1739393437712,-650.94,0.00011369,2]
[352894901,1739393437722,-500.0,0.00011369,2]
[352894902,1739393437735,-500.0,0.00011369,2]
[352894903,1739393437747,-555.46,0.00011369,2]
[352894904,1739393437758,-1095.22,0.00011369,2]
[352894905,1739393437768,-6580.78,0.00011369,2]
[352894906,1739393437778,-1042.8,0.00011369,2]
[352894907,1739393437788,-500.0,0.00011369,2]
[352894908,1739393437798,-500.0,0.00011369,2]
[352894909,1739393437808,-547.19,0.00011369,2]
[352894910,1739393437818,-500.0,0.00011369,2]
[352894911,1739393437829,-500.0,0.00011369,2]
[352894912,1739393437839,-602.63,0.00011369,2]
[352894913,1739393437853,-500.0,0.00011369,2]
[352894914,1739393437863,-500.0,0.00011369,2]
[352894915,1739393437873,-818.07,0.00011369,2]
[352894916,1739393437883,-500.0,0.00011369,2]
[352894917,1739393437895,-500.0,0.00011369,2]
[352894918,1739393437909,-500.0,0.00011369,2]
[352894919,1739393437919,-500.0,0.00011506,2]
[352894920,1739393437929,-500.0,0.00011506,2]
[352894922,1739393437939,-500.0,0.00011506,2]
[352894923,1739393437949,-500.0,0.00011506,2]
[352894924,1739393437959,-500.0,0.00011506,2]
[352894925,1739393437969,-500.0,0.00011506,2]
[352894926,1739393437978,-500.0,0.00011506,2]
[352894927,1739393437989,-500.0,0.00011506,2]
[352894928,1739393438004,-267.01913547,0.00011506,2]
[352894929,1739393438014,-500.0,0.00011506,2]
[352894930,1739393438023,-1421.52,0.00011506,2]
[352894931,1739393438033,-1568.81,0.00011506,2]
[352894932,1739393438044,-747.37,0.00011506,2]
[352894933,1739393438054,-500.0,0.00011506,2]
[352894934,1739393438064,-500.0,0.00011506,2]
[352894935,1739393438075,-560.01,0.00011506,2]
[352894936,1739393438085,-500.0,0.00011506,2]
[352894937,1739393438095,-1368.55,0.00011506,2]
[352894938,1739393438105,-947.77,0.00011506,2]
[352894939,1739393438114,-500.0,0.00011506,2]
[352894941,1739393438123,-553.87,0.00011506,2]
[352894943,1739393438133,-517.62,0.00011506,2]
[352894945,1739393438143,-500.0,0.00011506,2]
[352894947,1739393438153,-500.0,0.00011506,2]
[352894949,1739393438162,-870.15,0.00011506,2]
[352894951,1739393438172,-500.0,0.00011506,2]
[352894953,1739393438182,-500.0,0.00011506,2]
[352894955,1739393438192,-500.0,0.00011506,2]
[352894957,1739393438201,-267.52943384,0.00011506,2]
[352894959,1739393438211,-500.0,0.00011506,2]
[352894961,1739393438220,-500.0,0.00011506,2]
[352894963,1739393438230,-500.0,0.00011506,2]
[352894965,1739393438239,-500.0,0.00011506,2]
[352894967,1739393438252,-500.0,0.00011506,2]
[352894969,1739393438261,-503.44,0.00011506,2]
[352894971,1739393438271,-500.0,0.00011506,2]
[352894973,1739393438280,-956.76,0.00011506,2]
[352894975,1739393438290,-596.03,0.00011506,2]
[352894977,1739393438300,-500.0,0.00011506,2]
[352894979,1739393438310,-5877.95,0.00011506,2]
[352894980,1739393438320,-536.45,0.00011506,2]
[352894981,1739393438329,-3283.98,0.00011506,2]
[352894982,1739393438339,-500.0,0.00011506,2]
[352894983,1739393438348,-256.2,0.00011506,2]
[352894984,1739393438358,-942.97,0.00011506,2]
[352894985,1739393438367,-558.08,0.00011506,2]
[352894986,1739393438377,-500.0,0.00011506,2]
[352894987,1739393438387,-612.3,0.00011506,2]
[352894988,1739393438396,-500.0,0.00011506,2]
[352894989,1739393438407,-500.0,0.00011506,2]
[352894990,1739393438416,-2806.17,0.00011506,2]
[352894991,1739393438426,-500.0,0.00011506,2]
[352894992,1739393438436,-500.0,0.00011506,2]
[352894993,1739393438446,-738.41,0.00011506,2]
[352894994,1739393438456,-500.0,0.00011506,2]
[352894995,1739393438465,-500.0,0.00011506,2]
[352894996,1739393438475,-500.0,0.00011506,2]
[352894997,1739393438484,-1169.21,0.00011506,2]
[352894998,1739393438502,-500.0,0.00011506,2]
[352894999,1739393438522,-500.0,0.00011506,2]
[352895000,1739393438543,-500.0,0.00011506,2]
[352895001,1739393438564,-500.0,0.00011506,2]
[352895002,1739393438586,-500.0,0.00011506,2]
[352895003,1739393438607,-500.0,0.00011506,2]
[352895004,1739393438630,-524.79,0.00011506,2]
[352895005,1739393438652,-500.0,0.00011506,2]
[352895006,1739393438674,-500.0,0.00011506,2]
[352895007,1739393438690,-2937.97,0.00011506,2]
[352895008,1739393438700,-1013.13,0.00011506,2]
[352895009,1739393438710,-1137.31,0.00011506,2]
[352895010,1739393438719,-650.94,0.00011506,2]
[352895011,1739393438729,-500.0,0.00011506,2]
[352895012,1739393438739,-500.0,0.00011506,2]
[352895013,1739393438752,-555.46,0.00011506,2]
[352895014,1739393438761,-1095.22,0.00011506,2]
[352895015,1739393438771,-6580.78,0.00011506,2]
[352895016,1739393438780,-1042.8,0.00011506,2]
[352895017,1739393438789,-500.0,0.00011506,2]
[352895018,1739393438798,-500.0,0.00011506,2]
[352895019,1739393438808,-500.0,0.00011506,2]
[352895020,1739393438818,-500.0,0.00011506,2]
[352895021,1739393438828,-602.63,0.00011506,2]
[352895022,1739393438838,-500.0,0.00011506,2]
[352895023,1739393438849,-500.0,0.00011506,2]
[352895024,1739393438858,-818.07,0.00011506,2]
[352895025,1739393438868,-500.0,0.00011506,2]
[352895026,1739393438878,-500.0,0.00011506,2]
[352895027,1739393438888,-500.0,0.00011506,2]
[352895028,1739393438897,-500.0,0.00011643,2]
[352895029,1739393438911,-500.0,0.00011643,2]
[352895030,1739393438921,-500.0,0.00011643,2]
[352895031,1739393438930,-500.0,0.00011643,2]
[352895032,1739393438942,-500.0,0.00011643,2]
[352895033,1739393438956,-588.39,0.00011643,2]
[352895034,1739393438967,-500.0,0.00011643,2]
[352895035,1739393438978,-367.45935706,0.00011643,2]
[352895036,1739393438988,-500.0,0.00011643,2]
[352895037,1739393439001,-1421.52,0.00011643,2]
[352895038,1739393439011,-1568.81,0.00011643,2]
[352895039,1739393439020,-747.37,0.00011643,2]
[352895040,1739393439030,-500.0,0.00011643,2]
[352895041,1739393439039,-500.0,0.00011643,2]
[352895042,1739393439049,-560.01,0.00011643,2]
[352895043,1739393439058,-500.0,0.00011643,2]
[352895044,1739393439069,-1368.55,0.00011643,2]
[352895045,1739393439079,-947.77,0.00011643,2]
[352895046,1739393439088,-500.0,0.00011643,2]
[352895047,1739393439098,-553.87,0.00011643,2]
[352895048,1739393439108,-517.62,0.00011643,2]
[352895049,1739393439119,-500.0,0.00011643,2]
[352895050,1739393439129,-870.15,0.00011643,2]
[352895051,1739393439138,-500.0,0.00011643,2]
[352895052,1739393439148,-500.0,0.00011643,2]
[352895053,1739393439157,-500.0,0.00011643,2]
[352895054,1739393439166,-338.13,0.00011643,2]
[352895055,1739393439176,-500.0,0.00011643,2]
[352895056,1739393439186,-500.0,0.00011643,2]
[352895057,1739393439195,-500.0,0.00011643,2]
[352895058,1739393439205,-500.0,0.00011643,2]
[352895059,1739393439214,-503.44,0.00011643,2]
[352895060,1739393439224,-500.0,0.00011643,2]
[352895061,1739393439234,-956.76,0.00011643,2]
[352895062,1739393439245,-596.03,0.00011643,2]
[352895063,1739393439254,-500.0,0.00011643,2]
[352895064,1739393439264,-5877.95,0.00011643,2]
[352895065,1739393439273,-536.45,0.00011643,2]
[352895066,1739393439283,-3283.98,0.00011643,2]
[352895067,1739393439292,-500.0,0.00011643,2]
[352895068,1739393439302,-942.97,0.00011643,2]
[352895069,1739393439311,-500.0,0.00011643,2]
[352895070,1739393439321,-612.3,0.00011643,2]
[352895071,1739393439330,-500.0,0.00011643,2]
[352895072,1739393439340,-500.0,0.00011643,2]
[352895073,1739393439350,-2806.17,0.00011643,2]
[352895074,1739393439359,-500.0,0.00011643,2]
[352895075,1739393439368,-500.0,0.00011643,2]
[352895076,1739393439378,-738.41,0.00011643,2]
[352895077,1739393439478,-500.0,0.00011643,2]
[352895078,1739393439489,-500.0,0.00011643,2]
[352895079,1739393439504,-162.36,0.00011643,2]
[352895080,1739393439514,-1169.21,0.00011643,2]
[352895081,1739393439524,-500.0,0.00011643,2]
[352895082,1739393439534,-500.0,0.00011643,2]
[352895083,1739393439544,-500.0,0.00011643,2]
[352895084,1739393439553,-500.0,0.00011643,2]
[352895085,1739393439563,-500.0,0.00011643,2]
[352895086,1739393439572,-500.0,0.00011643,2]
[352895087,1739393439582,-524.79,0.00011643,2]
[352895088,1739393439592,-500.0,0.00011643,2]
[352895089,1739393439603,-500.0,0.00011643,2]
[352895090,1739393439613,-2937.97,0.00011643,2]
[352895091,1739393439622,-1013.13,0.00011643,2]
[352895092,1739393439632,-1137.31,0.00011643,2]
[352895093,1739393439641,-650.94,0.00011643,2]
[352895094,1739393439651,-500.0,0.00011643,2]
[352895095,1739393439660,-500.0,0.00011643,2]
[352895096,1739393439670,-555.46,0.00011643,2]
[352895097,1739393439679,-1095.22,0.00011643,2]
[352895098,1739393439689,-6580.78,0.00011643,2]
[352895099,1739393439699,-1042.8,0.00011643,2]
[352895100,1739393439708,-500.0,0.00011643,2]
[352895101,1739393439718,-500.0,0.00011643,2]
[352895102,1739393439727,-500.0,0.00011643,2]
[352895103,1739393439736,-500.0,0.00011643,2]
[352895104,1739393439748,-602.63,0.00011643,2]
[352895105,1739393439758,-500.0,0.00011643,2]
[352895106,1739393439768,-500.0,0.00011643,2]
[352895107,1739393439778,-818.07,0.00011643,2]
[352895108,1739393439787,-500.0,0.00011643,2]
[352895109,1739393439797,-2756.75967622,0.0001166,2]
[352895110,1739393439807,-402.84875047,0.0001178,2]
[352895111,1739393439817,-500.0,0.0001178,2]
[352895112,1739393439827,-500.0,0.0001178,2]
[352895113,1739393439837,-500.0,0.0001178,2]
[352895114,1739393439846,-500.0,0.0001178,2]
[352895115,1739393439856,-500.0,0.0001178,2]
[352895116,1739393439866,-500.0,0.0001178,2]
[352895117,1739393439876,-1421.52,0.0001178,2]
[352895118,1739393439886,-1568.81,0.0001178,2]
[352895119,1739393439899,-747.37,0.0001178,2]
[352895120,1739393439909,-500.0,0.0001178,2]
[352895121,1739393439919,-500.0,0.0001178,2]
[352895122,1739393439928,-560.01,0.0001178,2]
[352895123,1739393439937,-500.0,0.0001178,2]
[352895124,1739393439947,-1368.55,0.0001178,2]
[352895125,1739393439956,-947.77,0.0001178,2]
[352895126,1739393439966,-500.0,0.0001178,2]
[352895127,1739393439976,-553.87,0.0001178,2]
[352895128,1739393439986,-517.62,0.0001178,2]
[352895129,1739393439998,-500.0,0.0001178,2]
[352895130,1739393440007,-870.15,0.0001178,2]
[352895131,1739393440016,-500.0,0.0001178,2]
[352895132,1739393440025,-500.0,0.0001178,2]
[352895133,1739393440035,-500.0,0.0001178,2]
[352895134,1739393440045,-500.0,0.0001178,2]
[352895135,1739393440054,-500.0,0.0001178,2]
[352895136,1739393440064,-500.0,0.0001178,2]
[352895137,1739393440074,-503.44,0.0001178,2]
[352895138,1739393440083,-500.0,0.0001178,2]
[352895139,1739393440092,-956.76,0.0001178,2]
[352895140,1739393440101,-596.03,0.0001178,2]
[352895141,1739393440110,-500.0,0.0001178,2]
[352895142,1739393440119,-5877.95,0.0001178,2]
[352895143,1739393440128,-536.45,0.0001178,2]
[352895144,1739393440137,-3283.98,0.0001178,2]
[352895145,1739393440147,-500.0,0.0001178,2]
[352895146,1739393440156,-942.97,0.0001178,2]
[352895147,1739393440165,-500.0,0.0001178,2]
[352895148,1739393440174,-612.3,0.0001178,2]
[352895150,1739393440183,-500.0,0.0001178,2]
[352895151,1739393440192,-500.0,0.0001178,2]
[352895153,1739393440201,-2806.17,0.0001178,2]
[352895155,1739393440210,-500.0,0.0001178,2]
[352895157,1739393440219,-500.0,0.0001178,2]
[352895159,1739393440229,-738.41,0.0001178,2]
[352895161,1739393440239,-500.0,0.0001178,2]
[352895163,1739393440249,-500.0,0.0001178,2]
[352895165,1739393440259,-1169.21,0.0001178,2]
[352895167,1739393440268,-500.0,0.0001178,2]
[352895169,1739393440277,-277.34640115,0.0001178,2]
[352895171,1739393440286,-500.0,0.0001178,2]
[352895173,1739393440296,-500.0,0.0001178,2]
[352895174,1739393440305,-500.0,0.0001178,2]
[352895175,1739393440315,-500.0,0.0001178,2]
[352895176,1739393440323,-524.79,0.0001178,2]
[352895177,1739393440333,-500.0,0.0001178,2]
[352895178,1739393440342,-500.00000089,0.0001178,2]
[352895179,1739393440352,-2937.97,0.0001178,2]
[352895180,1739393440362,-1013.13,0.0001178,2]
[352895181,1739393440371,-1137.31,0.0001178,2]
[352895182,1739393440380,-650.94,0.0001178,2]
[352895183,1739393440389,-500.0,0.0001178,2]
[352895184,1739393440398,-500.0,0.0001178,2]
[352895185,1739393440408,-555.46,0.0001178,2]
[352895186,1739393440417,-1095.22,0.0001178,2]
[352895187,1739393440426,-6580.78,0.0001178,2]
[352895188,1739393440435,-1042.8,0.0001178,2]
[352895189,1739393440444,-500.0,0.0001178,2]
[352895190,1739393440454,-500.0,0.0001178,2]
[352895191,1739393440463,-500.0,0.0001178,2]
[352895193,1739393440473,-500.0,0.0001178,2]
[352895195,1739393440482,-602.63,0.0001178,2]
[352895197,1739393440491,-500.0,0.0001178,2]
[352895199,1739393440502,-500.0,0.0001178,2]
[352895201,1739393440511,-818.07,0.0001178,2]
[352895203,1739393440520,-500.0,0.0001178,2]
[352895205,1739393440530,-500.0,0.00011917,2]
[352895207,1739393440539,-500.0,0.00011917,2]
[352895209,1739393440548,-500.0,0.00011917,2]
[352895211,1739393440557,-500.0,0.00011917,2]
[352895213,1739393440567,-500.0,0.00011917,2]
[352895215,1739393440576,-500.0,0.00011917,2]
[352895216,1739393440584,-1421.52,0.00011917,2]
[352895219,1739393440595,-1568.81,0.00011917,2]
[352895221,1739393440604,-747.37,0.00011917,2]
[352895223,1739393440614,-500.0,0.00011917,2]
[352895225,1739393440623,-500.0,0.00011917,2]
[352895227,1739393440632,-560.01,0.00011917,2]
[352895229,1739393440641,-500.0,0.00011917,2]
[352895230,1739393440651,-1368.55,0.00011917,2]
[352895232,1739393440660,-947.77,0.00011917,2]
[352895234,1739393440670,-500.0,0.00011917,2]
[352895236,1739393440679,-553.87,0.00011917,2]
[352895238,1739393440689,-517.62,0.00011917,2]
[352895240,1739393440699,-500.0,0.00011917,2]
[352895242,1739393440708,-870.15,0.00011917,2]
[352895244,1739393440718,-500.0,0.00011917,2]
[352895246,1739393440730,-500.0,0.00011917,2]
[352895248,1739393440739,-500.0,0.00011917,2]
[352895250,1739393440750,-500.0,0.00011917,2]
[352895252,1739393440760,-500.0,0.00011917,2]
[352895254,1739393440770,-549.74003816,0.00011917,2]
[352895256,1739393440779,-503.44,0.00011917,2]
[352895257,1739393440788,-500.0,0.00011917,2]
[352895259,1739393440797,-956.76,0.00011917,2]
[352895261,1739393440806,-596.03,0.00011917,2]
[352895263,1739393440815,-500.0,0.00011917,2]
[352895265,1739393440825,-5877.95,0.00011917,2]
[352895267,1739393440834,-536.45,0.00011917,2]
[352895269,1739393440843,-3283.98,0.00011917,2]
[352895271,1739393440853,-500.0,0.00011917,2]
[352895273,1739393440863,-942.97,0.00011917,2]
[352895275,1739393440872,-500.0,0.00011917,2]
[352895277,1739393440882,-612.3,0.00011917,2]
[352895279,1739393440893,-500.0,0.00011917,2]
[352895281,1739393440905,-500.0,0.00011917,2]
[352895283,1739393440914,-2806.17,0.00011917,2]
[352895285,1739393440924,-500.0,0.00011917,2]
[352895287,1739393440933,-500.0,0.00011917,2]
[352895289,1739393440943,-738.41,0.00011917,2]
[352895290,1739393440952,-500.0,0.00011917,2]
[352895292,1739393440962,-500.0,0.00011917,2]
[352895295,1739393440972,-1169.21,0.00011917,2]
[352895296,1739393440981,-500.0,0.00011917,2]
[352895298,1739393440991,-500.0,0.00011917,2]
[352895300,1739393441002,-500.0,0.00011917,2]
[352895302,1739393441012,-500.0,0.00011917,2]
[352895312,1739393441100,-500.0,0.00011917,2]
[352895314,1739393441111,-524.79,0.00011917,2]
[352895316,1739393441120,-500.0,0.00011917,2]
[352895318,1739393441131,-2937.97,0.00011917,2]
[352895320,1739393441140,-1013.13,0.00011917,2]
[352895322,1739393441149,-1137.31,0.00011917,2]
[352895324,1739393441159,-650.94,0.00011917,2]
[352895326,1739393441168,-624.51,0.00011917,2]
[352895328,1739393441178,-500.0,0.00011917,2]
[352895329,1739393441187,-555.46,0.00011917,2]
[352895331,1739393441197,-1095.22,0.00011917,2]
[352895333,1739393441205,-6580.78,0.00011917,2]
[352895335,1739393441215,-1042.8,0.00011917,2]
[352895337,1739393441225,-500.0,0.00011917,2]
[352895339,1739393441234,-500.0,0.00011917,2]
[352895341,1739393441244,-500.0,0.00011917,2]
[352895343,1739393441253,-500.0,0.00011917,2]
[352895345,1739393441262,-602.63,0.00011917,2]
[352895346,1739393441271,-601.25723499,0.00011917,2]
[352895348,1739393441281,-416.75010825,0.00011917,2]
[352895377,1739393441558,-1091.78,0.00011232,2]
[352895379,1739393441569,-1091.78,0.00011369,2]
[352895381,1739393441579,-1091.78,0.00011506,2]
[352895383,1739393441588,-500.0,0.00011643,2]
[352895385,1739393441598,-500.0,0.00011643,2]
[352895387,1739393441607,-1091.78,0.00011643,2]
[352895389,1739393441617,-500.0,0.0001178,2]
[352895391,1739393441626,-500.0,0.0001178,2]
[352895393,1739393441644,-1091.78,0.0001178,2]
[352895396,1739393441672,-83.24989175,0.00011917,2]
[352895398,1739393441700,-818.07,0.00011917,2]
[352895400,1739393441724,-500.0,0.00011917,2]
[352895402,1739393441751,-384.48,0.00011917,2]
[352895404,1739393441779,-500.0,0.00011917,2]
[352895406,1739393441807,-1091.78,0.00011917,2]
[352895408,1739393441833,-867.61296424,0.00011945,2]
[352895411,1739393441851,-420.0,0.00012041,2]
[352895413,1739393441865,-500.0,0.00012054,2]
[352895416,1739393441880,-500.0,0.00012054,2]
[352895418,1739393441896,-500.0,0.00012054,2]
[352895420,1739393441913,-500.0,0.00012054,2]
[352895423,1739393441929,-307.97099139,0.00012054,2]
[352895425,1739393441942,-219.49418036,0.00012054,2]
[352895427,1739393441954,-1421.52,0.00012054,2]
[352895430,1739393441967,-1568.81,0.00012054,2]
[352895432,1739393441981,-747.37,0.00012054,2]
[352895435,1739393442005,-500.0,0.00012054,2]
[352895439,1739393442032,-500.0,0.00012054,2]
[352895442,1739393442054,-560.01,0.00012054,2]
[352895445,1739393442075,-500.0,0.00012054,2]
[352895447,1739393442089,-1368.55,0.00012054,2]
[352895449,1739393442102,-947.77,0.00012054,2]
[352895452,1739393442118,-500.0,0.00012054,2]
[352895454,1739393442135,-553.87,0.00012054,2]
[352895457,1739393442149,-517.62,0.00012054,2]
[352895459,1739393442162,-500.0,0.00012054,2]
[352895462,1739393442176,-870.15,0.00012054,2]
[352895464,1739393442193,-500.0,0.00012054,2]
[352895466,1739393442207,-500.0,0.00012054,2]
[352895468,1739393442218,-500.0,0.00012054,2]
[352895471,1739393442231,-500.0,0.00012054,2]
[352895473,1739393442251,-500.0,0.00012054,2]
[352895476,1739393442265,-503.44,0.00012054,2]
[352895478,1739393442281,-500.0,0.00012054,2]
[352895480,1739393442296,-956.76,0.00012054,2]
[352895483,1739393442310,-596.03,0.00012054,2]
[352895485,1739393442324,-500.0,0.00012054,2]
[352895487,1739393442338,-5877.95,0.00012054,2]
[352895490,1739393442352,-536.45,0.00012054,2]
[352895492,1739393442365,-3283.98,0.00012054,2]
[352895494,1739393442378,-500.0,0.00012054,2]
[352895496,1739393442391,-942.97,0.00012054,2]
[352895499,1739393442403,-500.0,0.00012054,2]
[352895501,1739393442416,-612.3,0.00012054,2]
[352895503,1739393442429,-512.08,0.00012054,2]
[352895505,1739393442441,-500.0,0.00012054,2]
[352895508,1739393442453,-2806.17,0.00012054,2]
[352895510,1739393442466,-262.58,0.00012054,2]
[352895512,1739393442478,-500.0,0.00012054,2]
[352895514,1739393442491,-738.41,0.00012054,2]
[352895517,1739393442505,-500.0,0.00012054,2]
[352895519,1739393442517,-500.0,0.00012054,2]
[352895521,1739393442529,-1169.21,0.00012054,2]
[352895523,1739393442540,-500.0,0.00012054,2]
[352895525,1739393442549,-500.0,0.00012054,2]
[352895527,1739393442559,-500.0,0.00012054,2]
[352895529,1739393442568,-214.03748501,0.00012054,2]
[352895531,1739393442577,-524.79,0.00012054,2]
[352895533,1739393442588,-500.0,0.00012054,2]
[352895535,1739393442597,-2937.97,0.00012054,2]
[352895537,1739393442607,-1013.13,0.00012054,2]
[352895539,1739393442616,-1137.31,0.00012054,2]
[352895540,1739393442626,-650.94,0.00012054,2]
[352895542,1739393442635,-500.0,0.00012054,2]
[352895544,1739393442645,-555.46,0.00012054,2]
[352895546,1739393442654,-1095.22,0.00012054,2]
[352895548,1739393442664,-6580.78,0.00012054,2]
[352895550,1739393442673,-1042.8,0.00012054,2]
[352895552,1739393442684,-500.0,0.00012054,2]
[352895554,1739393442694,-500.0,0.00012054,2]
[352895556,1739393442703,-500.0,0.00012054,2]
[352895558,1739393442712,-500.0,0.00012054,2]
[352895578,1739393442906,-602.63,0.00012054,2]
[352895580,1739393442918,-500.0,0.00012054,2]
[352895582,1739393442929,-818.07,0.00012054,2]
[352895585,1739393442938,-500.0,0.00012054,2]
[352895588,1739393442948,-500.0,0.00012054,2]
[352895590,1739393442957,-1091.78,0.00012054,2]
[352895593,1739393442966,-162.00606345,0.00012076,2]
[352895595,1739393442975,-500.0,0.00012076,2]
[352895598,1739393442985,-151.0,0.000121,2]
[352895599,1739393442994,-163.72888396,0.00012101,2]
[352895601,1739393443003,-1654.17054076,0.00012127,2]
[352895603,1739393443013,-500.0,0.00012129,2]
[352895605,1739393443022,-507.98663694,0.00012129,2]
[352895607,1739393443031,-500.0,0.00012152,2]
[352895609,1739393443041,-500.0,0.00012152,2]
[352895611,1739393443050,-501.09183101,0.00012157,2]
[352895614,1739393443059,-500.0,0.00012179,2]
[352895616,1739393443068,-500.0,0.00012179,2]
[352895619,1739393443077,-506.56848115,0.00012179,2]
[352895621,1739393443086,-501.62037964,0.00012179,2]
[352895624,1739393443096,-500.0,0.00012191,2]
[352895626,1739393443105,-500.0,0.00012191,2]
[352895628,1739393443115,-500.0,0.00012191,2]
[352895629,1739393443124,-500.0,0.00012191,2]
[352895631,1739393443133,-1421.52,0.00012191,2]
[352895633,1739393443143,-1568.81,0.00012191,2]
[352895635,1739393443152,-747.37,0.00012191,2]
[352895637,1739393443162,-500.0,0.00012191,2]
[352895639,1739393443171,-500.0,0.00012191,2]
[352895641,1739393443181,-560.01,0.00012191,2]
[352895643,1739393443190,-500.0,0.00012191,2]
[352895645,1739393443199,-1368.55,0.00012191,2]
[352895647,1739393443209,-947.77,0.00012191,2]
[352895649,1739393443219,-500.0,0.00012191,2]
[352895651,1739393443228,-553.87,0.00012191,2]
[352895653,1739393443237,-517.62,0.00012191,2]
[352895655,1739393443248,-500.0,0.00012191,2]
[352895657,1739393443258,-870.15,0.00012191,2]
[352895659,1739393443267,-500.0,0.00012191,2]
[352895661,1739393443277,-500.0,0.00012191,2]
[352895663,1739393443286,-500.0,0.00012191,2]
[352895664,1739393443296,-500.0,0.00012191,2]
[352895666,1739393443306,-500.0,0.00012191,2]
[352895668,1739393443315,-503.44,0.00012191,2]
[352895670,1739393443324,-500.0,0.00012191,2]
[352895672,1739393443334,-956.76,0.00012191,2]
[352895674,1739393443344,-596.03,0.00012191,2]
[352895676,1739393443354,-500.0,0.00012191,2]
[352895678,1739393443363,-5877.95,0.00012191,2]
[352895680,1739393443372,-536.45,0.00012191,2]
[352895682,1739393443382,-3283.98,0.00012191,2]
[352895684,1739393443391,-500.0,0.00012191,2]
[352895686,1739393443400,-942.97,0.00012191,2]
[352895688,1739393443410,-500.0,0.00012191,2]
[352895689,1739393443419,-612.3,0.00012191,2]
[352895690,1739393443428,-500.0,0.00012191,2]
[352895691,1739393443437,-2806.17,0.00012191,2]
[352895692,1739393443446,-500.0,0.00012191,2]
[352895693,1739393443455,-738.41,0.00012191,2]
[352895694,1739393443464,-500.0,0.00012191,2]
[352895695,1739393443474,-500.0,0.00012191,2]
[352895696,1739393443483,-1169.21,0.00012191,2]